Workbook

Sheet Admin

Sheet Foregone Revenue Rate Riders
B3: Rate Rider for Recovery of Forgone Distribution Revenue (Jan-Jul 2025) effective until December 31, 2025
B5: Rate Class | C5: Unit
B6: RESIDENTIAL SERVICE CLASSIFICATION | C6: $ | D6: =Residential!Y7 -> 1.344
B7: GENERAL SERVICE LESS THAN 50 KW SERVICE CLASSIFICATION | C7: $ | D7: ='GS<50kW'!Y7 -> 1.4
B8: GENERAL SERVICE 50 TO 2,999 KW SERVICE CLASSIFICATION | C8: $ | D8: ='GS>50 to 2999 kW'!Y7 -> 5.082
B9: GENERAL SERVICE 3,000 TO 4,999 KW SERVICE CLASSIFICATION | C9: $ | D9: ='GS>3000 kW '!Y7 -> 304.304
B10: UNMETERED SCATTERED LOAD SERVICE CLASSIFICATION | C10: $ | D10: =UnMetered!Y7 -> 0.546
B11: SENTINEL LIGHTING SERVICE CLASSIFICATION | C11: $ | D11: =Sentinel!Y7 -> 0.322
B12: STREET LIGHTING SERVICE CLASSIFICATION | C12: $ | D12: =StreetLight!Y7 -> 0.098
B14: Rate Class | C14: Unit
B15: RESIDENTIAL SERVICE CLASSIFICATION | C15: kWh
B16: GENERAL SERVICE LESS THAN 50 KW SERVICE CLASSIFICATION | C16: kWh | D16: ='GS<50kW'!Y13 -> 0.00056
B17: GENERAL SERVICE 50 TO 2,999 KW SERVICE CLASSIFICATION | C17: kW | D17: ='GS>50 to 2999 kW'!Y13 -> 0.20286
B18: GENERAL SERVICE 3,000 TO 4,999 KW SERVICE CLASSIFICATION | C18: kW | D18: ='GS>3000 kW '!Y13 -> 0.1127
B19: UNMETERED SCATTERED LOAD SERVICE CLASSIFICATION | C19: kWh | D19: =UnMetered!Y13 -> 0.00084
B20: SENTINEL LIGHTING SERVICE CLASSIFICATION | C20: kW | D20: =Sentinel!Y13 -> 0.74494
B21: STREET LIGHTING SERVICE CLASSIFICATION | C21: kW | D21: =StreetLight!Y13 -> 0.26964
B24: Rate Rider for Recovery of Forgone Incremental Capital Module Revenue (May-Jul 2025) effective until December 31, 2025
B26: Rate Class | C26: Unit
B27: RESIDENTIAL SERVICE CLASSIFICATION | C27: $ | D27: =Residential!Y10 -> 0.216
B28: GENERAL SERVICE LESS THAN 50 KW SERVICE CLASSIFICATION | C28: $ | D28: ='GS<50kW'!Y10 -> 0.222
B29: GENERAL SERVICE 50 TO 2,999 KW SERVICE CLASSIFICATION | C29: $ | D29: ='GS>50 to 2999 kW'!Y10 -> 0.798
B30: GENERAL SERVICE 3,000 TO 4,999 KW SERVICE CLASSIFICATION | C30: $ | D30: ='GS>3000 kW '!Y10 -> 111.244
B31: UNMETERED SCATTERED LOAD SERVICE CLASSIFICATION | C31: $ | D31: =UnMetered!Y10 -> 0.196
B32: SENTINEL LIGHTING SERVICE CLASSIFICATION | C32: $ | D32: =Sentinel!Y10 -> 0.126
B33: STREET LIGHTING SERVICE CLASSIFICATION | C33: $ | D33: =StreetLight!Y10 -> 0.042
B35: Rate Class | C35: Unit
B36: RESIDENTIAL SERVICE CLASSIFICATION | C36: kWh
B37: GENERAL SERVICE LESS THAN 50 KW SERVICE CLASSIFICATION | C37: kWh | D37: ='GS<50kW'!Y16 -> 0.00014
B38: GENERAL SERVICE 50 TO 2,999 KW SERVICE CLASSIFICATION | C38: kW | D38: ='GS>50 to 2999 kW'!Y16 -> 0.07462
B39: GENERAL SERVICE 3,000 TO 4,999 KW SERVICE CLASSIFICATION | C39: kW | D39: ='GS>3000 kW '!Y16 -> 0.04144
B40: UNMETERED SCATTERED LOAD SERVICE CLASSIFICATION | C40: kWh | D40: =UnMetered!Y16 -> 0.00028
B41: SENTINEL LIGHTING SERVICE CLASSIFICATION | C41: kW | D41: =Sentinel!Y16 -> 0.27538
B42: STREET LIGHTING SERVICE CLASSIFICATION | C42: kW | D42: =StreetLight!Y16 -> 0.0994

Sheet Residential
B1: RESIDENTIAL SERVICE CLASSIFICATION | G1: RESIDENTIAL SERVICE CLASSIFICATION | L1: Foregone Revenue Calculation Fixed | V1: RESIDENTIAL SERVICE CLASSIFICATION
B2: Current Tariff Rates From IRM Rate Generator | G2: Final Tariff Rates before retroactivity From IRM Rate Generator | Q2: Effective Jan 1 2025 | R2: Effective May 1, 2025 | T2: Implemented Aug 2025 | V2: Proposed Final Tariff Rates after retroactivity
E3: A | J3: B | L3: C = B - A | N3: D = A * 7 | O3: E = B * 5 | P3: F = D + E | Q3: G = B *12 | R3: G = B *8 | S3: H = G - F | T3: I = H / 5 | Y3: E
B4: MONTHLY RATES AND CHARGES - Delivery Component | E4: Current | G4: MONTHLY RATES AND CHARGES - Delivery Component | J4: Proposed | L4: Monthly Differential | N4: Actual Billed to July | O4: Proposed Billed to Dec | P4: Expected Annual Billed | Q4: Required Annual Billed | R4: Required Annual Billed | S4: Foregone Revenue | V4: MONTHLY RATES AND CHARGES - Delivery Component | Y4: Final
B6: Service Charge | D6: $ | E6: 26.8 | G6: Service Charge | I6: $ | J6: 27.76 | L6: =J6-E6 -> 0.96 | N6: =E6*7 -> 187.6 | O6: =J6*5 -> 138.8 | P6: =SUM(N6:O6) -> 326.4 | Q6: =J6*12 -> 333.12 | S6: =Q6-P6 -> 6.72 | V6: Service Charge | X6: $ | Y6: =J6 -> 27.76
G7: Rate Rider for Recovery of Forgone Distribution Revenue (Jan-Jul 2025) effective until December 31, 2025 | T7: =S6/5 -> 1.344 | V7: Rate Rider for Recovery of Forgone Distribution Revenue (Jan-Jul 2025) effective until December 31, 2025 | X7: $ | Y7: =T7 -> 1.344
G9: Rate Rider for Recovery of Incremental Capital (2025) - effective until December 31, 2026 | I9: $ | J9: 0.36 | L9: =J9-E9 -> 0.36 | N9: =E9*7 -> 0 | O9: =J9*5 -> 1.8 | P9: =SUM(N9:O9) -> 1.8 | R9: =J9*8 -> 2.88 | S9: =R9-P9 -> 1.08 | V9: Rate Rider for Recovery of Incremental Capital (2025) - effective until December 31, 2026 | X9: $ | Y9: =J9 -> 0.36
G10: Rate Rider for Recovery of Forgone Incremental Capital Module Revenue (May-Jul 2025) effective until December 31, 2025 | T10: =S9/5 -> 0.216 | V10: =G10 -> Rate Rider for Recovery of Forgone Incremental Capital Module Revenue (May-Jul 2025) effective until December 31, 2025 | X10: $ | Y10: =T10 -> 0.216

Sheet GS<50kW
B1: GENERAL SERVICE LESS THAN 50 KW SERVICE CLASSIFICATION | G1: GENERAL SERVICE LESS THAN 50 KW SERVICE CLASSIFICATION | L1: Foregone Revenue Calculation | V1: GENERAL SERVICE LESS THAN 50 KW SERVICE CLASSIFICATION
B2: Current Tariff Rates From IRM Rate Generator | G2: Final Tariff Rates before retroactivity From IRM Rate Generator | Q2: Effective Jan 1 2025 | R2: Effective May 1, 2025 | T2: Implemented Aug 2025 | V2: Proposed Final Tariff Rates after retroactivity
E3: A | J3: B | L3: C = B - A | N3: D = A * 7 | O3: E = B * 5 | P3: F = D + E | Q3: G = B *12 | R3: G = B *8 | S3: H = G - F | T3: I = H / 5 | Y3: E
B4: MONTHLY RATES AND CHARGES - Delivery Component | E4: Current | G4: MONTHLY RATES AND CHARGES - Delivery Component | J4: Proposed | L4: Monthly Differential | N4: Actual Billed to July | O4: Proposed Billed to Dec | P4: Expected Annual Billed | Q4: Required Annual Billed | R4: Required Annual Billed | S4: Foregone Revenue | V4: MONTHLY RATES AND CHARGES - Delivery Component | Y4: Final
B6: Service Charge | D6: $ | E6: 27.71 | G6: Service Charge | I6: $ | J6: 28.71 | L6: =J6-E6 -> 1 | N6: =E6*7 -> 193.97 | O6: =J6*5 -> 143.55 | P6: =SUM(N6:O6) -> 337.52 | Q6: =J6*12 -> 344.52 | S6: =Q6-P6 -> 7 | V6: Service Charge | X6: $ | Y6: =J6 -> 28.71
G7: Rate Rider for Recovery of Forgone Distribution Revenue (Jan-Jul 2025) effective until December 31, 2025 | T7: =S6/5 -> 1.4 | V7: Rate Rider for Recovery of Forgone Distribution Revenue (Jan-Jul 2025) effective until December 31, 2025 | Y7: =T7 -> 1.4
G9: Rate Rider for Recovery of Incremental Capital (2025) - effective until December 31, 2026 | I9: $ | J9: 0.37 | L9: =J9-E9 -> 0.37 | N9: =E9*7 -> 0 | O9: =J9*5 -> 1.85 | P9: =SUM(N9:O9) -> 1.85 | R9: =J9*8 -> 2.96 | S9: =R9-P9 -> 1.11 | V9: Rate Rider for Recovery of Incremental Capital (2025) - effective until December 31, 2026 | X9: $ | Y9: =J9 -> 0.37
G10: Rate Rider for Recovery of Forgone Incremental Capital Module Revenue (May-Jul 2025) effective until December 31, 2025 | T10: =S9/5 -> 0.222 | V10: Rate Rider for Recovery of Forgone Incremental Capital Module Revenue (May-Jul 2025) effective until December 31, 2025 | Y10: =T10 -> 0.222
B12: Distribution Volumetric Rate | D12: $/kWh | E12: 0.0102 | G12: Distribution Volumetric Rate | I12: $/kWh | J12: 0.0106 | L12: =J12-E12 -> 0.0004 | N12: 0 | O12: =L12*5 -> 0.002 | P12: =N12+O12 -> 0.002 | Q12: =L12*12 -> 0.0048 | S12: =Q12-P12 -> 0.0028 | V12: Distribution Volumetric Rate | X12: $/kWh | Y12: =J12 -> 0.0106
G13: Rate Rider for Recovery of Forgone Distribution Revenue (Jan-Jul 2025) effective until December 31, 2025 | T13: =S12/5 -> 0.00056 | V13: Rate Rider for Recovery of Forgone Distribution Revenue (Jan-Jul 2025) effective until December 31, 2025 | Y13: =T13 -> 0.00056
G15: Rate Rider for Recovery of Incremental Capital (2025) - effective until December 31, 2026 | I15: $/kWh | J15: 0.0001 | L15: =J15-E15 -> 0.0001 | N15: 0 | O15: =L15*5 -> 0.0005 | P15: =N15+O15 -> 0.0005 | Q15: =L15*12 -> 0.0012 | S15: =Q15-P15 -> 0.0007 | V15: Rate Rider for Recovery of Incremental Capital (2025) - effective until December 31, 2026 | X15: $/kWh | Y15: =J15 -> 0.0001
G16: Rate Rider for Recovery of Forgone Incremental Capital Module Revenue (May-Jul 2025) effective until December 31, 2025 | T16: =S15/5 -> 0.00014 | V16: Rate Rider for Recovery of Forgone Incremental Capital Module Revenue (May-Jul 2025) effective until December 31, 2025 | Y16: =T16 -> 0.00014

Sheet GS>50 to 2999 kW
B1: GENERAL SERVICE 50 TO 2,999 KW SERVICE CLASSIFICATION | G1: GENERAL SERVICE 50 TO 2,999 KW SERVICE CLASSIFICATION | L1: Foregone Revenue Calculation | V1: GENERAL SERVICE 50 TO 2,999 KW SERVICE CLASSIFICATION
B2: Current Tariff Rates From IRM Rate Generator | G2: Final Tariff Rates before retroactivity From IRM Rate Generator | Q2: Effective Jan 1 2025 | R2: Effective May 1, 2025 | T2: Implemented Aug 2025 | V2: Proposed Final Tariff Rates after retroactivity
E3: A | J3: B | L3: C = B - A | N3: D = A * 7 | O3: E = B * 5 | P3: F = D + E | Q3: G = B *12 | R3: G = B *8 | S3: H = G - F | T3: I = H / 5 | Y3: E
B4: MONTHLY RATES AND CHARGES - Delivery Component | E4: Current | G4: MONTHLY RATES AND CHARGES - Delivery Component | J4: Proposed | L4: Monthly Differential | N4: Actual Billed to July | O4: Proposed Billed to Dec | P4: Expected Annual Billed | Q4: Required Annual Billed | R4: Required Annual Billed | S4: Foregone Revenue | V4: MONTHLY RATES AND CHARGES - Delivery Component | Y4: Final
B6: Service Charge | D6: $ | E6: 100.83 | G6: Service Charge | I6: $ | J6: 104.46 | L6: =J6-E6 -> 3.63 | N6: =E6*7 -> 705.81 | O6: =J6*5 -> 522.3 | P6: =SUM(N6:O6) -> 1228.11 | Q6: =J6*12 -> 1253.52 | S6: =Q6-P6 -> 25.41 | V6: Service Charge | X6: $ | Y6: =J6 -> 104.46
G7: Rate Rider for Recovery of Forgone Distribution Revenue (Jan-Jul 2025) effective until December 31, 2025 | T7: =S6/5 -> 5.082 | V7: Rate Rider for Recovery of Forgone Distribution Revenue (Jan-Jul 2025) effective until December 31, 2025 | Y7: =T7 -> 5.082
G9: Rate Rider for Recovery of Incremental Capital (2025) - effective until December 31, 2026 | I9: $ | J9: 1.33 | L9: =J9-E9 -> 1.33 | N9: =E9*7 -> 0 | O9: =J9*5 -> 6.65 | P9: =SUM(N9:O9) -> 6.65 | R9: =J9*8 -> 10.64 | S9: =R9-P9 -> 3.99 | V9: Rate Rider for Recovery of Incremental Capital (2025) - effective until December 31, 2026 | X9: $ | Y9: =J9 -> 1.33
G10: Rate Rider for Recovery of Forgone Incremental Capital Module Revenue (May-Jul 2025) effective until December 31, 2025 | T10: =S9/5 -> 0.798 | V10: Rate Rider for Recovery of Forgone Incremental Capital Module Revenue (May-Jul 2025) effective until December 31, 2025 | Y10: =T10 -> 0.798
B12: Distribution Volumetric Rate | D12: $/kW | E12: 4.0251 | G12: Distribution Volumetric Rate | I12: $/kW | J12: 4.17 | L12: =J12-E12 -> 0.1449 | N12: 0 | O12: =L12*5 -> 0.7245 | P12: =N12+O12 -> 0.7245 | Q12: =L12*12 -> 1.7388 | S12: =Q12-P12 -> 1.0143 | V12: Distribution Volumetric Rate | X12: $/kW | Y12: =O12 -> 0.7245
G13: Rate Rider for Recovery of Forgone Distribution Revenue (Jan-Jul 2025) effective until December 31, 2025 | T13: =S12/5 -> 0.20286 | V13: Rate Rider for Recovery of Forgone Distribution Revenue (Jan-Jul 2025) effective until December 31, 2025 | Y13: =T13 -> 0.20286
G15: Rate Rider for Recovery of Incremental Capital (2025) - effective until December 31, 2026 | I15: $/kW | J15: 0.0533 | L15: =J15-E15 -> 0.0533 | N15: 0 | O15: =L15*5 -> 0.2665 | P15: =N15+O15 -> 0.2665 | Q15: =L15*12 -> 0.6396 | S15: =Q15-P15 -> 0.3731 | V15: Rate Rider for Recovery of Incremental Capital (2025) - effective until December 31, 2026 | X15: $/kW | Y15: =O15 -> 0.2665
G16: Rate Rider for Recovery of Forgone Incremental Capital Module Revenue (May-Jul 2025) effective until December 31, 2025 | T16: =S15/5 -> 0.07462 | V16: Rate Rider for Recovery of Forgone Incremental Capital Module Revenue (May-Jul 2025) effective until December 31, 2025 | Y16: =T16 -> 0.07462

Sheet GS>3000 kW
B1: GENERAL SERVICE 3,000 TO 4,999 KW SERVICE CLASSIFICATION | G1: =B1 -> GENERAL SERVICE 3,000 TO 4,999 KW SERVICE CLASSIFICATION | L1: Foregone Revenue Calculation | V1: =G1 -> GENERAL SERVICE 3,000 TO 4,999 KW SERVICE CLASSIFICATION
B2: Current Tariff Rates From IRM Rate Generator | G2: Final Tariff Rates before retroactivity From IRM Rate Generator | Q2: Effective Jan 1 2025 | R2: Effective May 1, 2025 | T2: Implemented Aug 2025 | V2: Proposed Final Tariff Rates after retroactivity
E3: A | J3: B | L3: C = B - A | N3: D = A * 7 | O3: E = B * 5 | P3: F = D + E | Q3: G = B *12 | R3: G = B *8 | S3: H = G - F | T3: I = H / 5 | Y3: E
B4: MONTHLY RATES AND CHARGES - Delivery Component | E4: Current | G4: MONTHLY RATES AND CHARGES - Delivery Component | J4: Proposed | L4: Monthly Differential | N4: Actual Billed to July | O4: Proposed Billed to Dec | P4: Expected Annual Billed | Q4: Required Annual Billed | R4: Required Annual Billed | S4: Foregone Revenue | V4: MONTHLY RATES AND CHARGES - Delivery Component | Y4: Final
B6: Service Charge | D6: $ | E6: 6037.86 | G6: Service Charge | I6: $ | J6: 6255.22 | L6: =J6-E6 -> 217.36 | N6: =E6*7 -> 42265.02 | O6: =J6*5 -> 31276.1 | P6: =SUM(N6:O6) -> 73541.12 | Q6: =J6*12 -> 75062.64 | S6: =Q6-P6 -> 1521.52 | V6: Service Charge | X6: $ | Y6: =J6 -> 6255.22
G7: Rate Rider for Recovery of Forgone Distribution Revenue (Jan-Jul 2025) effective until December 31, 2025 | T7: =S6/5 -> 304.304 | V7: Rate Rider for Recovery of Forgone Distribution Revenue (Jan-Jul 2025) effective until December 31, 2025 | Y7: =T7 -> 304.304
G9: Rate Rider for Recovery of Incremental Capital (2025) - effective until December 31, 2026 | I9: $ | J9: 79.46 | L9: =J9-E9 -> 79.46 | N9: =E9*7 -> 0 | O9: =J9*5 -> 397.3 | P9: =SUM(N9:O9) -> 397.3 | Q9: =J9*12 -> 953.52 | S9: =Q9-P9 -> 556.22 | V9: Rate Rider for Recovery of Incremental Capital (2025) - effective until December 31, 2026 | X9: $ | Y9: =J9 -> 79.46
G10: Rate Rider for Recovery of Forgone Incremental Capital Module Revenue (May-Jul 2025) effective until December 31, 2025 | T10: =S9/5 -> 111.244 | V10: Rate Rider for Recovery of Forgone Incremental Capital Module Revenue (May-Jul 2025) effective until December 31, 2025 | Y10: =T10 -> 111.244
B12: Distribution Volumetric Rate | D12: $/kW | E12: 2.235 | G12: Distribution Volumetric Rate | I12: $/kW | J12: 2.3155 | L12: =J12-E12 -> 0.0805 | N12: =E12*7 -> 15.645 | O12: =J12*5 -> 11.5775 | P12: =SUM(N12:O12) -> 27.2225 | Q12: =J12*12 -> 27.786 | S12: =Q12-P12 -> 0.5635 | V12: Distribution Volumetric Rate | X12: $/kW | Y12: =J12 -> 2.3155
G13: Rate Rider for Recovery of Forgone Distribution Revenue (Jan-Jul 2025) effective until December 31, 2025 | T13: =S12/5 -> 0.1127 | V13: Rate Rider for Recovery of Forgone Distribution Revenue (Jan-Jul 2025) effective until December 31, 2025 | Y13: =T13 -> 0.1127
G15: Rate Rider for Recovery of Incremental Capital (2025) - effective until December 31, 2026 | I15: $/kW | J15: 0.0296 | L15: =J15-E15 -> 0.0296 | N15: =E15*7 -> 0 | O15: =J15*5 -> 0.148 | P15: =SUM(N15:O15) -> 0.148 | Q15: =J15*12 -> 0.3552 | S15: =Q15-P15 -> 0.2072 | V15: Rate Rider for Recovery of Incremental Capital (2025) - effective until December 31, 2026 | X15: $/kW | Y15: =J15 -> 0.0296
G16: Rate Rider for Recovery of Forgone Incremental Capital Module Revenue (May-Jul 2025) effective until December 31, 2025 | T16: =S15/5 -> 0.04144 | V16: Rate Rider for Recovery of Forgone Incremental Capital Module Revenue (May-Jul 2025) effective until December 31, 2025 | Y16: =T16 -> 0.04144

Sheet UnMetered
B1: UNMETERED SCATTERED LOAD SERVICE CLASSIFICATION | G1: =B1 -> UNMETERED SCATTERED LOAD SERVICE CLASSIFICATION | L1: Foregone Revenue Calculation | V1: =G1 -> UNMETERED SCATTERED LOAD SERVICE CLASSIFICATION
B2: Current Tariff Rates From IRM Rate Generator | G2: Final Tariff Rates before retroactivity From IRM Rate Generator | Q2: Effective Jan 1 2025 | R2: Effective May 1, 2025 | T2: Implemented Aug 2025 | V2: Proposed Final Tariff Rates after retroactivity
E3: A | J3: B | L3: C = B - A | N3: D = A * 7 | O3: E = B * 5 | P3: F = D + E | Q3: G = B *12 | R3: G = B *8 | S3: H = G - F | T3: I = H / 5 | Y3: E
B4: MONTHLY RATES AND CHARGES - Delivery Component | E4: Current | G4: MONTHLY RATES AND CHARGES - Delivery Component | J4: Proposed | L4: Monthly Differential | N4: Actual Billed to July | O4: Proposed Billed to Dec | P4: Expected Annual Billed | Q4: Required Annual Billed | R4: Required Annual Billed | S4: Foregone Revenue | V4: MONTHLY RATES AND CHARGES - Delivery Component | Y4: Final
B6: Service Charge (per customer) | D6: $ | E6: 10.76 | G6: Service Charge (per customer) | I6: $ | J6: 11.15 | L6: =J6-E6 -> 0.39 | N6: =E6*7 -> 75.32 | O6: =J6*5 -> 55.75 | P6: =SUM(N6:O6) -> 131.07 | Q6: =J6*12 -> 133.8 | S6: =Q6-P6 -> 2.73 | V6: Service Charge (per customer) | X6: $ | Y6: =J6 -> 11.15
G7: Rate Rider for Recovery of Forgone Distribution Revenue (Jan-Jul 2025) effective until December 31, 2025 | T7: =S6/5 -> 0.546 | V7: Rate Rider for Recovery of Forgone Distribution Revenue (Jan-Jul 2025) effective until December 31, 2025 | Y7: =T7 -> 0.546
G9: Rate Rider for Recovery of Incremental Capital (2025) - effective until December 31, 2026 | I9: $ | J9: 0.14 | L9: =J9-E9 -> 0.14 | N9: =E9*7 -> 0 | O9: =J9*5 -> 0.7 | P9: =SUM(N9:O9) -> 0.7 | Q9: =J9*12 -> 1.68 | S9: =Q9-P9 -> 0.98 | V9: Rate Rider for Recovery of Incremental Capital (2025) - effective until December 31, 2026 | X9: $ | Y9: =J9 -> 0.14
G10: Rate Rider for Recovery of Forgone Incremental Capital Module Revenue (May-Jul 2025) effective until December 31, 2025 | T10: =S9/5 -> 0.196 | V10: Rate Rider for Recovery of Forgone Incremental Capital Module Revenue (May-Jul 2025) effective until December 31, 2025 | Y10: =T10 -> 0.196
B12: Distribution Volumetric Rate | D12: $/kWh | E12: 0.016 | G12: Distribution Volumetric Rate | I12: $/kWh | J12: 0.0166 | L12: =J12-E12 -> 0.0006 | N12: =E12*7 -> 0.112 | O12: =J12*5 -> 0.083 | P12: =SUM(N12:O12) -> 0.195 | Q12: =J12*12 -> 0.1992 | S12: =Q12-P12 -> 0.0042 | V12: Distribution Volumetric Rate | X12: $/kWh | Y12: =L12 -> 0.0006
G13: Rate Rider for Recovery of Forgone Distribution Revenue (Jan-Jul 2025) effective until December 31, 2025 | T13: =S12/5 -> 0.00084 | V13: Rate Rider for Recovery of Forgone Distribution Revenue (Jan-Jul 2025) effective until December 31, 2025 | Y13: =T13 -> 0.00084
G15: Rate Rider for Recovery of Incremental Capital (2025) - effective until December 31, 2026 | I15: $/kWh | J15: 0.0002 | L15: =J15-E15 -> 0.0002 | N15: =E15*7 -> 0 | O15: =J15*5 -> 0.001 | P15: =SUM(N15:O15) -> 0.001 | Q15: =J15*12 -> 0.0024 | S15: =Q15-P15 -> 0.0014 | V15: Rate Rider for Recovery of Incremental Capital (2025) - effective until December 31, 2026 | X15: $/kWh | Y15: =L15 -> 0.0002
G16: Rate Rider for Recovery of Forgone Incremental Capital Module Revenue (May-Jul 2025) effective until December 31, 2025 | T16: =S15/5 -> 0.00028 | V16: Rate Rider for Recovery of Forgone Incremental Capital Module Revenue (May-Jul 2025) effective until December 31, 2025 | Y16: =T16 -> 0.00028

Sheet Sentinel
B1: SENTINEL LIGHTING SERVICE CLASSIFICATION | G1: =B1 -> SENTINEL LIGHTING SERVICE CLASSIFICATION | L1: Foregone Revenue Calculation | V1: =G1 -> SENTINEL LIGHTING SERVICE CLASSIFICATION
B2: Current Tariff Rates From IRM Rate Generator | G2: Final Tariff Rates before retroactivity From IRM Rate Generator | Q2: Effective Jan 1 2025 | R2: Effective May 1, 2025 | T2: Implemented Aug 2025 | V2: Proposed Final Tariff Rates after retroactivity
E3: A | J3: B | L3: C = B - A | N3: D = A * 7 | O3: E = B * 5 | P3: F = D + E | Q3: G = B *12 | R3: G = B *8 | S3: H = G - F | T3: I = H / 5 | Y3: E
B4: MONTHLY RATES AND CHARGES - Delivery Component | E4: Current | G4: MONTHLY RATES AND CHARGES - Delivery Component | J4: Proposed | L4: Monthly Differential | N4: Actual Billed to July | O4: Proposed Billed to Dec | P4: Expected Annual Billed | Q4: Required Annual Billed | R4: Required Annual Billed | S4: Foregone Revenue | V4: MONTHLY RATES AND CHARGES - Delivery Component | Y4: Final
B6: Service Charge (per connection) | D6: $ | E6: 6.49 | G6: Service Charge (per connection) | I6: $ | J6: 6.72 | L6: =J6-E6 -> 0.23 | N6: =E6*7 -> 45.43 | O6: =J6*5 -> 33.6 | P6: =SUM(N6:O6) -> 79.03 | Q6: =J6*12 -> 80.64 | S6: =Q6-P6 -> 1.61 | V6: Service Charge (per connection) | X6: $ | Y6: =J6 -> 6.72
G7: Rate Rider for Recovery of Forgone Distribution Revenue (Jan-Jul 2025) effective until December 31, 2025 | T7: =S6/5 -> 0.322 | V7: Rate Rider for Recovery of Forgone Distribution Revenue (Jan-Jul 2025) effective until December 31, 2025 | Y7: =T7 -> 0.322
G9: Rate Rider for Recovery of Incremental Capital (2025) - effective until December 31, 2026 | I9: $ | J9: 0.09 | L9: =J9-E9 -> 0.09 | N9: =E9*7 -> 0 | O9: =J9*5 -> 0.45 | P9: =SUM(N9:O9) -> 0.45 | Q9: =J9*12 -> 1.08 | S9: =Q9-P9 -> 0.63 | V9: Rate Rider for Recovery of Incremental Capital (2025) - effective until December 31, 2026 | X9: $ | Y9: =J9 -> 0.09
G10: Rate Rider for Recovery of Forgone Incremental Capital Module Revenue (May-Jul 2025) effective until December 31, 2025 | T10: =S9/5 -> 0.126 | V10: Rate Rider for Recovery of Forgone Incremental Capital Module Revenue (May-Jul 2025) effective until December 31, 2025 | Y10: =T10 -> 0.126
B12: Distribution Volumetric Rate | D12: $/kW | E12: 14.7818 | G12: Distribution Volumetric Rate | I12: $/kW | J12: 15.3139 | L12: =J12-E12 -> 0.5321 | N12: =E12*7 -> 103.4726 | O12: =J12*5 -> 76.5695 | P12: =SUM(N12:O12) -> 180.0421 | Q12: =J12*12 -> 183.7668 | S12: =Q12-P12 -> 3.7247 | V12: Distribution Volumetric Rate | X12: $/kW | Y12: 15.3139
G13: Rate Rider for Recovery of Forgone Distribution Revenue (Jan-Jul 2025) effective until December 31, 2025 | T13: =S12/5 -> 0.74494 | V13: Rate Rider for Recovery of Forgone Distribution Revenue (Jan-Jul 2025) effective until December 31, 2025 | Y13: =T13 -> 0.74494
G15: Rate Rider for Recovery of Incremental Capital (2025) - effective until December 31, 2026 | I15: $/kW | J15: 0.1967 | L15: =J15-E15 -> 0.1967 | N15: =E15*7 -> 0 | O15: =J15*5 -> 0.9835 | P15: =SUM(N15:O15) -> 0.9835 | Q15: =J15*12 -> 2.3604 | S15: =Q15-P15 -> 1.3769 | V15: Rate Rider for Recovery of Incremental Capital (2025) - effective until December 31, 2026 | X15: $/kW | Y15: 0.1967
G16: Rate Rider for Recovery of Forgone Incremental Capital Module Revenue (May-Jul 2025) effective until December 31, 2025 | T16: =S15/5 -> 0.27538 | V16: Rate Rider for Recovery of Forgone Incremental Capital Module Revenue (May-Jul 2025) effective until December 31, 2025 | Y16: =T16 -> 0.27538

Sheet StreetLight
B1: STREET LIGHTING SERVICE CLASSIFICATION | G1: =B1 -> STREET LIGHTING SERVICE CLASSIFICATION | L1: Foregone Revenue Calculation | V1: =G1 -> STREET LIGHTING SERVICE CLASSIFICATION
B2: Current Tariff Rates From IRM Rate Generator | G2: Final Tariff Rates before retroactivity From IRM Rate Generator | Q2: Effective Jan 1 2025 | R2: Effective May 1, 2025 | T2: Implemented Aug 2025 | V2: Proposed Final Tariff Rates after retroactivity
E3: A | J3: B | L3: C = B - A | N3: D = A * 7 | O3: E = B * 5 | P3: F = D + E | Q3: G = B *12 | R3: G = B *8 | S3: H = G - F | T3: I = H / 5 | Y3: E
B4: MONTHLY RATES AND CHARGES - Delivery Component | E4: Current | G4: MONTHLY RATES AND CHARGES - Delivery Component | J4: Proposed | L4: Monthly Differential | N4: Actual Billed to July | O4: Proposed Billed to Dec | P4: Expected Annual Billed | Q4: Required Annual Billed | R4: Required Annual Billed | S4: Foregone Revenue | V4: MONTHLY RATES AND CHARGES - Delivery Component | Y4: Final
B6: Service Charge (per device) | D6: $ | E6: 2.04 | G6: Service Charge (per device) | I6: $ | J6: 2.11 | L6: =J6-E6 -> 0.07 | N6: =E6*7 -> 14.28 | O6: =J6*5 -> 10.55 | P6: =SUM(N6:O6) -> 24.83 | Q6: =J6*12 -> 25.32 | S6: =Q6-P6 -> 0.49 | V6: Service Charge (per device) | X6: $ | Y6: =J6 -> 2.11
G7: Rate Rider for Recovery of Forgone Distribution Revenue (Jan-Jul 2025) effective until December 31, 2025 | T7: =S6/5 -> 0.098 | V7: Rate Rider for Recovery of Forgone Distribution Revenue (Jan-Jul 2025) effective until December 31, 2025 | Y7: =T7 -> 0.098
G9: Rate Rider for Recovery of Incremental Capital (2025) - effective until December 31, 2026 | I9: $ | J9: 0.03 | L9: =J9-E9 -> 0.03 | N9: =E9*7 -> 0 | O9: =J9*5 -> 0.15 | P9: =SUM(N9:O9) -> 0.15 | Q9: =J9*12 -> 0.36 | S9: =Q9-P9 -> 0.21 | V9: Rate Rider for Recovery of Incremental Capital (2025) - effective until December 31, 2026 | X9: $ | Y9: =J9 -> 0.03
G10: Rate Rider for Recovery of Forgone Incremental Capital Module Revenue (May-Jul 2025) effective until December 31, 2025 | T10: =S9/5 -> 0.042 | V10: Rate Rider for Recovery of Forgone Incremental Capital Module Revenue (May-Jul 2025) effective until December 31, 2025 | Y10: =T10 -> 0.042
B12: Distribution Volumetric Rate | D12: $/kW | E12: 5.3511 | G12: Distribution Volumetric Rate | I12: $/kW | J12: 5.5437 | L12: =J12-E12 -> 0.1926 | N12: =E12*7 -> 37.4577 | O12: =J12*5 -> 27.7185 | P12: =SUM(N12:O12) -> 65.1762 | Q12: =J12*12 -> 66.5244 | S12: =Q12-P12 -> 1.3482 | V12: Distribution Volumetric Rate | X12: $/kW | Y12: 5.5437
G13: Rate Rider for Recovery of Forgone Distribution Revenue (Jan-Jul 2025) effective until December 31, 2025 | T13: =S12/5 -> 0.26964 | V13: Rate Rider for Recovery of Forgone Distribution Revenue (Jan-Jul 2025) effective until December 31, 2025 | Y13: =T13 -> 0.26964
G15: Rate Rider for Recovery of Incremental Capital (2025) - effective until December 31, 2026 | I15: $/kW | J15: 0.071 | L15: =J15-E15 -> 0.071 | N15: =E15*7 -> 0 | O15: =J15*5 -> 0.355 | P15: =SUM(N15:O15) -> 0.355 | Q15: =J15*12 -> 0.852 | S15: =Q15-P15 -> 0.497 | V15: Rate Rider for Recovery of Incremental Capital (2025) - effective until December 31, 2026 | X15: $/kW | Y15: 0.071
G16: Rate Rider for Recovery of Forgone Incremental Capital Module Revenue (May-Jul 2025) effective until December 31, 2025 | T16: =S15/5 -> 0.0994 | V16: Rate Rider for Recovery of Forgone Incremental Capital Module Revenue (May-Jul 2025) effective until December 31, 2025 | Y16: =T16 -> 0.0994
